bitfinex-derivatives/quotes_ETHF0:USTF0_20250531
["timestamp","ask_amount","ask_price","bid_price","bid_amount"]
[1748732474927,0.99377944,2529.6,2529.5,0.79028]
[1748732475235,0.99377944,2529.6,2529.4,0.1]
[1748732475535,0.99377944,2529.6,2529.5,0.79028]
[1748732475834,0.99377944,2529.6,2529.4,0.89028]
[1748732476131,0.99377944,2529.6,2529.5,0.79028]
[1748732476633,0.79028,2529.5,2529.4,0.1]
[1748732477034,2.06138,2529.5,2529.4,0.89031]
[1748732477231,2.06138,2529.5,2529.4,0.1]
[1748732478435,1.2711,2529.5,2529.4,0.89031]
[1748732479731,21.62732944,2529.6,2529.5,0.79028]
[1748732479937,18.41952944,2529.6,2529.5,0.79028]
[1748732480237,0.20352944,2529.6,2529.5,0.79028]
[1748732480630,0.20352944,2529.6,2529.5,2.04238]
[1748732482439,0.20352944,2529.6,2529.5,2.14238]
[1748732482739,0.99376944,2529.6,2529.5,0.1]
[1748732483036,3.03336944,2529.6,2529.5,0.1]
[1748732483238,6.24116944,2529.6,2529.5,0.1]
[1748732483535,5.45092944,2529.6,2529.5,0.89028]
[1748732483733,3.41132944,2529.6,2529.5,0.89028]
[1748732485639,0.20352944,2529.6,2529.5,0.89028]
[1748732487942,0.20352944,2529.6,2529.5,1.51548]
[1748732490044,0.20352944,2529.6,2529.5,0.89028]
[1748732490946,0.20352944,2529.6,2529.5,0.1]
[1748732490947,0.99376944,2529.6,2529.5,0.1]
[1748732491150,3.62216789,2529.6,2529.5,0.1]
[1748732491847,3.62216789,2529.6,2529.5,0.89027]
[1748732492950,2.83192789,2529.6,2529.5,0.89027]
[1748732493150,3.62216789,2529.6,2529.5,0.89027]
[1748732494751,2.83192789,2529.6,2529.5,0.89027]
[1748732495153,3.62216789,2529.6,2529.5,0.89027]
[1748732495950,2.83192789,2529.6,2529.5,0.89027]
[1748732496252,1.47672789,2529.6,2529.5,0.89027]
[1748732496650,2.26696789,2529.6,2529.5,0.89027]
[1748732497153,2.26696789,2529.6,2529.5,0.79027]
[1748732497452,1.47672789,2529.6,2529.5,0.89027]
[1748732504656,0.20352944,2529.6,2529.5,0.89027]
[1748732505359,0.20352944,2529.6,2529.5,2.22627]
[1748732512165,0.20352944,2529.6,2529.5,2.12627]
[1748732512463,0.20352944,2529.6,2529.5,2.22627]
[1748732518567,0.0788,2530.0,2529.9,0.79014]
[1748732519170,0.0788,2530.0,2529.9,2.81494]
[1748732520368,4.07674,2530.0,2529.8,0.79015]
[1748732520562,1.9855,2529.9,2529.8,0.79015]
[1748732520762,2.6435,2529.9,2529.8,0.79015]
[1748732521971,2.6435,2529.9,2529.7,0.00592944]
[1748732522173,2.05547,2529.8,2529.7,0.00592944]
[1748732523372,2.05547,2529.8,2529.7,0.79613944]
[1748732523672,1.2653,2529.8,2529.7,0.79613944]
[1748732523873,2.53545255,2529.8,2529.7,0.79613944]
[1748732524067,3.32562255,2529.8,2529.7,0.79613944]
[1748732525175,2.53545255,2529.8,2529.7,0.79613944]
[1748732525472,3.32562255,2529.8,2529.7,0.79613944]
[1748732527465,3.32562255,2529.8,2529.7,0.89613944]
[1748732527668,2.53545255,2529.8,2529.7,0.89613944]
[1748732528175,3.32562255,2529.8,2529.7,0.89613944]
[1748732528572,3.32562255,2529.8,2529.7,0.10592944]
[1748732529172,3.32562255,2529.8,2529.7,0.89613944]
[1748732529366,3.32562255,2529.8,2529.7,0.10592944]
[1748732529575,3.32562255,2529.8,2529.7,0.89613944]
[1748732530076,3.32562255,2529.8,2529.7,0.10592944]
[1748732532380,3.32562255,2529.8,2529.7,0.89613944]
[1748732532582,3.32562255,2529.8,2529.7,0.10592944]
[1748732535284,3.36497255,2529.8,2529.7,0.10592944]
[1748732535494,8.36497255,2529.8,2529.7,0.10592944]
[1748732535692,0.79033,2529.3,2529.2,1.7851]
[1748732536083,0.79033,2529.3,2529.2,0.79036]
[1748732536788,2.05883,2529.3,2529.2,0.79036]
[1748732537293,0.79038,2529.2,2529.1,0.79037]
[1748732537488,3.8577,2529.2,2528.9,1.6835]
[1748732537684,2.05892,2529.1,2528.9,1.6835]
[1748732537986,0.79042,2529.1,2529.0,0.79042]
[1748732538589,0.79042,2529.0,2528.9,0.79044]
[1748732539189,0.79052,2528.7,2528.6,1.7856]
[1748732539393,0.79051,2528.8,2528.6,1.7856]
[1748732539597,0.6499,2528.7,2528.6,2.57614]
[1748732539885,3.21372944,2528.9,2528.8,0.79049]
[1748732540087,3.21372944,2528.9,2528.8,3.99829]
[1748732540088,0.00592944,2528.9,2528.8,3.99829]
[1748732540284,0.00592944,2528.9,2528.8,9.67229]
[1748732540686,0.00592944,2528.9,2528.8,10.92279]
[1748732541190,0.00592944,2528.9,2528.8,7.71499]
[1748732541391,0.00592944,2528.9,2528.8,10.92279]
[1748732544085,0.00592944,2528.9,2528.8,5.92279]
[1748732544489,0.00592944,2528.9,2528.8,10.92279]
[1748732545397,0.00592944,2528.9,2528.8,5.92279]
[1748732546601,0.20362944,2528.9,2528.8,5.92279]
[1748732551301,0.20362944,2528.9,2528.8,5.24879]
[1748732551510,0.20362944,2528.9,2528.8,0.79049]
[1748732552899,0.20362944,2528.9,2528.8,2.06149]
[1748732556004,0.86512944,2528.9,2528.8,2.06149]
[1748732557511,0.86512944,2528.9,2528.8,2.16149]
[1748732562016,1.65558944,2528.9,2528.8,0.1]
[1748732562213,3.00428944,2528.9,2528.8,0.1]
[1748732562816,3.00428944,2528.9,2528.1,3.2078]
[1748732562817,1.97632,2528.7,2528.1,3.2078]
[1748732563018,0.79064,2528.4,2528.3,0.79064]
[1748732563512,2.66444,2528.4,2528.3,0.79064]
[1748732563909,1.8738,2528.4,2528.3,0.79064]
[1748732564118,0.6304,2528.4,2528.3,0.79064]
[1748732564320,3.2078,2528.5,2528.4,0.79061]
[1748732565918,3.99838,2528.5,2528.4,0.79061]
[1748732566214,3.99838,2528.5,2528.2,1.9666]
[1748732566215,0.79066,2528.3,2528.2,0.79065]
[1748732566818,2.14346,2528.3,2528.2,0.79065]
[1748732567020,2.14346,2528.3,2528.2,0.89065]
[1748732567218,1.3528,2528.3,2528.2,0.89065]
[1748732567917,2.14344,2528.3,2528.2,0.89065]
[1748732569425,2.34114,2528.3,2528.2,0.89065]
[1748732569624,1.5505,2528.3,2528.2,0.89065]
[1748732571820,0.1977,2528.3,2528.2,0.89065]
[1748732574024,0.1977,2528.3,2528.2,1.52585]
[1748732582140,0.1977,2528.3,2528.2,0.89065]
[1748732584139,0.1977,2528.3,2528.2,0.79065]
[1748732584446,0.1977,2528.3,2528.2,0.89065]
[1748732585536,0.1977,2528.3,2528.2,2.22655]
[1748732588240,0.1977,2528.3,2528.2,0.89065]
[1748732588544,0.98834,2528.3,2528.2,0.1]
[1748732588749,0.1977,2528.3,2528.2,0.89067]
[1748732591748,1.5358,2528.3,2528.2,0.89067]
[1748732592649,2.1979,2528.3,2528.2,0.89067]
[1748732595350,2.23725,2528.3,2528.2,0.89067]
[1748732595544,0.2765,2528.3,2528.2,0.89067]
[1748732597344,1.5738,2528.3,2528.2,0.89067]
[1748732598454,0.2765,2528.3,2528.2,0.89067]
[1748732598651,0.2765,2528.3,2528.2,1.57427]
[1748732599049,0.2765,2528.3,2528.2,2.91767]
[1748732600956,0.2765,2528.3,2528.2,6.76067]
[1748732601356,3.8829,2528.8,2528.7,0.79052]
[1748732601750,0.6751,2528.8,2528.7,0.79052]
[1748732602052,1.95398283,2528.8,2528.7,0.79052]
[1748732602450,1.95398283,2528.8,2528.7,0.89052]
[1748732604158,14.88019,2528.8,2528.7,0.1]
[1748732604358,9.88019,2528.8,2528.7,0.1]
[1748732604560,14.88019,2528.8,2528.7,0.1]
[1748732608061,16.15759056,2528.8,2528.7,0.1]
[1748732611556,0.79065,2528.4,2528.3,0.79063]
[1748732611759,0.79071,2528.1,2528.0,1.418]
[1748732611963,3.99851,2528.1,2528.0,1.418]
[1748732612163,0.79074,2528.0,2527.9,0.79075]
[1748732612363,2.12184,2528.0,2527.9,0.79075]
[1748732612759,6.3311,2528.0,2527.6,1.7467]
[1748732612964,0.79083,2527.7,2527.6,1.7467]
[1748732613363,1.9892,2527.7,2527.3,0.15596936]
[1748732613563,0.7909,2527.5,2527.4,0.79093]
[1748732613966,0.79093,2527.4,2527.3,0.15596936]
[1748732614366,2.12203,2527.4,2527.3,0.15596936]
[1748732614860,2.79183,2527.4,2527.3,0.15596936]
[1748732615062,0.6698,2527.4,2527.3,0.94692936]
[1748732615567,1.94720056,2527.4,2527.3,0.94692936]
[1748732615969,1.27740056,2527.4,2527.3,1.04692936]
[1748732616358,2.06833056,2527.4,2527.3,0.25596936]
[1748732616569,2.53480056,2527.4,2527.3,1.04692936]
[1748732616768,1.2574,2527.4,2527.3,1.04692936]
[1748732617169,2.04833,2527.4,2527.3,0.25596936]
[1748732617373,2.04833,2527.4,2527.3,0.24396936]
[1748732619770,2.04833,2527.4,2527.3,1.03492936]
[1748732619971,2.04833,2527.4,2527.3,0.24396936]
[1748732620370,2.04833,2527.4,2527.3,1.03492936]
[1748732620569,2.04833,2527.4,2527.3,0.24396936]
[1748732620869,2.04833,2527.4,2527.3,1.03492936]
[1748732621068,2.04833,2527.4,2527.3,0.24396936]
[1748732621269,2.04833,2527.4,2527.3,1.03492936]
[1748732621466,0.79093,2527.4,2527.3,1.03489936]
[1748732621669,22.16971,2527.5,2527.4,0.79093]
[1748732621872,22.16971,2527.5,2527.3,0.24396936]
[1748732621873,0.79093,2527.4,2527.3,1.03490936]
[1748732622074,0.79093,2527.4,2527.3,0.24396936]
[1748732622374,0.79093,2527.4,2527.3,1.03492936]
[1748732622773,0.79093,2527.4,2527.3,0.24396936]
[1748732623177,2.13073,2527.4,2527.3,0.24396936]
[1748732624973,7.13073,2527.4,2527.3,0.24396936]
[1748732625172,2.13073,2527.4,2527.3,0.24396936]
[1748732627676,7.13073,2527.4,2527.3,0.24396936]
[1748732628678,7.13073,2527.4,2526.5,6.2761]
[1748732628679,1.9774,2527.3,2525.6,0.39021147]
[1748732628868,6.73717168,2527.4,2525.6,0.39021147]
[1748732628869,3.2078,2526.6,2526.3,0.79125]
[1748732629073,3.2078,2526.6,2526.4,1.35784143]
[1748732629273,0.79121,2526.5,2526.4,1.35784143]
[1748732629675,0.79121,2526.5,2526.4,0.03044143]
[1748732629878,2.12511,2526.5,2526.4,0.03044143]
[1748732630073,3.2078,2526.6,2526.5,0.79121]
[1748732630469,3.2078,2526.6,2526.5,2.11641]
[1748732630878,3.2078,2526.6,2526.5,2.74641]
[1748732631178,3.2078,2526.6,2526.5,2.77685143]
[1748732632978,3.99898,2526.6,2526.5,0.92165143]
[1748732633183,3.99898,2526.6,2526.5,0.13044143]
[1748732633581,3.99898,2526.6,2526.5,0.92165143]
[1748732633782,3.99898,2526.6,2526.5,0.13044143]
[1748732634084,8.99898,2526.6,2526.5,0.13044143]
[1748732634487,10.34658,2526.6,2526.5,0.13044143]
[1748732637398,10.54438,2526.6,2526.5,0.13044143]
[1748732640003,11.81195079,2526.6,2526.5,0.13044143]
[1748732640201,11.81195079,2526.6,2524.9,3.2774]
[1748732640202,14.97667079,2526.6,2524.9,3.2774]
[1748732640405,0.79151,2525.6,2525.5,0.7915]
[1748732640595,0.79154,2525.5,2525.4,0.79153]
[1748732640790,0.79154,2525.5,2525.4,0.79155]
[1748732641008,3.2078,2525.7,2525.6,0.79149]
[1748732641792,3.2078,2525.7,2525.6,1.41919]
[1748732644494,3.2078,2525.7,2525.6,1.51919]
[1748732644698,3.99926,2525.7,2525.6,0.7277]
[1748732644999,3.99926,2525.7,2525.6,1.51919]
[1748732645200,3.99926,2525.7,2525.6,2.86129]
[1748732645400,3.21372944,2526.0,2525.9,0.79139]
[1748732646301,0.00592944,2526.0,2525.9,5.79139]
[1748732646501,0.00592944,2526.0,2525.9,7.16789]
[1748732647004,0.00592944,2526.0,2525.9,2.16789]
[1748732648403,0.00592944,2526.0,2525.9,7.16789]
[1748732649900,3.4056,2526.6,2526.5,0.79121]
[1748732650097,0.1978,2526.6,2526.5,0.79121]
[1748732650494,0.1978,2526.6,2526.5,2.05511]
[1748732651405,0.00592944,2526.8,2526.7,0.79114]
[1748732651893,0.79082,2527.8,2527.6,0.79086]
[1748732652100,6.32375502,2527.7,2527.2,1.9774]
[1748732652294,6.32374502,2527.7,2527.3,1.9616]
[1748732652700,3.99864,2527.7,2527.6,0.79086]
[1748732652902,3.99864,2527.7,2527.5,0.79087]
[1748732653205,4.19644,2527.7,2527.6,1.3379]
[1748732653406,0.791,2527.2,2527.1,0.79101]
[1748732653801,7.1818,2527.4,2526.7,3.2078]
[1748732654107,3.2078,2527.1,2526.3,3.21372944]
[1748732654295,0.79111,2526.8,2526.7,0.79113]
[1748732654501,3.974,2526.9,2526.3,3.21372944]
[1748732654801,0.79124,2526.4,2526.3,0.00592944]
[1748732655505,0.79124,2526.4,2525.7,3.99924]
[1748732655506,0.011,2525.8,2525.7,3.99924]
[1748732655705,0.011,2525.8,2525.7,5.24344]
[1748732655905,0.011,2525.8,2525.7,10.89394]
[1748732656708,0.79139,2526.0,2525.8,0.79141]
[1748732656904,1.2753,2526.3,2525.9,0.79139]
[1748732657306,0.79143,2525.8,2525.7,3.2078]
[1748732657507,0.79146,2525.7,2525.6,0.1]
[1748732658409,2.13206,2525.7,2525.6,0.1]
[1748732658603,6.3406,2525.7,2525.0,3.2078]
[1748732658805,0.79152,2525.5,2525.3,0.79157]
[1748732659007,0.7916,2525.3,2525.1,2.08483]
[1748732659510,2.13217,2525.4,2525.1,2.08483]
[1748732659704,0.00592944,2525.5,2525.4,0.79155]
[1748732660103,0.00592944,2525.5,2525.4,2.08475]
[1748732661000,0.00592944,2525.5,2525.4,5.29255]
[1748732661604,9.44e-06,2525.5,2525.4,10.29255]
[1748732662900,2.32510502,2526.5,2526.4,0.79124]
[1748732663606,2.08541,2526.8,2526.6,0.79115]
[1748732664412,0.79114,2526.7,2526.6,0.79115]
[1748732665811,0.79114,2526.7,2526.5,0.79119]
[1748732666110,1.2569,2526.6,2526.5,0.79119]
[1748732666307,2.04808,2526.6,2526.5,0.79119]
[1748732666711,1.2569,2526.6,2526.5,0.79119]
[1748732667715,1.2569,2526.6,2526.3,3.2078]
[1748732668014,1.2569,2526.6,2526.5,0.79121]
[1748732668408,2.04808,2526.6,2526.5,0.79121]
[1748732669115,1.2569,2526.6,2526.5,0.79121]
[1748732669809,0.79124,2526.4,2526.3,3.99904]
[1748732670011,0.79123,2526.5,2526.4,0.79123]
[1748732670206,2.04809,2526.6,2526.5,0.79121]
[1748732670410,1.2569,2526.6,2526.3,3.2078]
[1748732670621,0.79122,2526.5,2526.4,0.79121]
[1748732671416,0.79124,2526.4,2526.3,3.99906]
[1748732671615,0.79122,2526.5,2526.4,0.79122]
[1748732672611,0.79124,2526.4,2526.3,3.2078]
[1748732672810,2.07274,2526.4,2526.3,3.99907]
[1748732673013,1.2815,2526.4,2526.3,0.79127]
[1748732674118,1.9115,2526.4,2526.3,0.79127]
[1748732675512,5.04996,2526.7,2526.6,0.79118]
[1748732675716,23.49196,2526.7,2526.6,0.79118]
[1748732675916,0.7912,2526.6,2526.5,0.79119]
[1748732676118,1.2911,2526.6,2526.5,0.79121]
[1748732676719,20.51728,2526.6,2526.5,0.79121]
[1748732677410,19.7261,2526.6,2526.5,0.89121]
[1748732678122,20.51728,2526.6,2526.5,0.89121]
[1748732678420,1.2911,2526.6,2526.5,0.89121]
[1748732680121,2.08228,2526.6,2526.5,0.89121]
[1748732680323,1.2911,2526.6,2526.5,0.89121]
[1748732680620,19.40697,2526.7,2526.6,0.79118]
[1748732680820,19.40597,2526.7,2526.6,0.79118]
[1748732681223,0.98897,2526.7,2526.6,0.79118]
[1748732681423,19.40297,2526.7,2526.6,0.79118]
[1748732681614,0.98897,2526.7,2526.6,0.79118]
[1748732683424,0.1978,2526.7,2526.6,0.79118]
[1748732683623,0.98894,2526.7,2526.6,2.11728]
[1748732686024,2.26432563,2526.7,2526.6,2.11728]
[1748732686826,1.47318563,2526.7,2526.6,2.11728]
[1748732687028,1.47318563,2526.7,2526.6,2.75038]
[1748732687427,1.47318563,2526.7,2526.6,5.95818]
[1748732687627,1.47318563,2526.7,2526.6,6.58258]
[1748732688125,0.1978,2526.7,2526.6,6.58258]
[1748732688835,0.00592944,2527.0,2526.9,0.79108]
[1748732689033,0.00592944,2527.0,2526.9,8.05888]
[1748732689830,0.00592944,2527.0,2526.9,13.05888]
[1748732690124,2.99760502,2527.7,2527.6,0.79086]
[1748732690321,3.78843502,2527.7,2527.6,0.79086]
[1748732690527,1.46333,2527.7,2527.6,0.79086]
[1748732690925,0.79087,2527.6,2527.5,0.79087]
[1748732692328,0.79087,2527.6,2527.3,1.9668]
[1748732692329,0.79091,2527.5,2527.4,0.7909]
[1748732692525,0.69091,2527.5,2527.4,0.7909]
[1748732692729,2.06769831,2527.6,2527.5,0.79089]
[1748732693026,0.79089,2527.5,2527.4,0.7909]
[1748732693226,0.79089,2527.5,2527.4,2.1636]
[1748732693429,2.06767831,2527.6,2527.5,0.79089]
[1748732694431,0.79086,2527.6,2527.5,0.79089]
[1748732695025,0.79089,2527.6,2527.5,0.79088]
[1748732695333,0.79101,2527.2,2527.1,0.79098]
[1748732695530,21.6166,2527.7,2526.9,6.48719]
[1748732695531,1.3021,2527.5,2526.9,6.48719]
[1748732695725,0.79097,2527.3,2527.2,0.79096]
[1748732696423,0.79098,2527.3,2527.2,0.79097]
[1748732696827,0.6509,2527.4,2526.9,4.5095]
[1748732697131,0.79105,2527.0,2526.9,2.09275]
[1748732698030,0.79104,2527.1,2527.0,0.79102]
[1748732698436,0.79101,2527.2,2527.1,0.79099]
[1748732699731,18.373,2527.3,2527.2,0.79099]
[1748732700136,0.79096,2527.3,2527.2,0.79099]
[1748732700337,19.16096,2527.3,2527.2,0.79099]
[1748732701444,18.37,2527.3,2527.2,0.79099]
[1748732701735,18.37,2527.3,2527.2,0.89099]
[1748732702440,19.16096,2527.3,2527.2,0.89099]
[1748732702740,3.99876,2527.3,2527.2,0.89099]
[1748732703135,3.2078,2527.3,2527.2,0.89099]
[1748732703539,0.79094,2527.4,2527.3,0.79096]
[1748732703837,0.79092,2527.5,2527.4,0.7909]
[1748732705439,3.41600254,2527.5,2527.4,0.7909]
[1748732705738,0.79096,2527.3,2527.2,0.89097]
[1748732706335,0.79095,2527.4,2527.3,0.79094]
[1748732706733,0.79096,2527.3,2527.2,0.89098]
[1748732707938,2.06663254,2527.4,2527.3,0.79096]
[1748732709237,2.06661254,2527.4,2527.3,0.79096]
[1748732710641,1.27568254,2527.4,2527.3,0.79096]
[1748732710939,2.06661254,2527.4,2527.3,0.79096]
[1748732711239,1.27568254,2527.4,2527.3,0.79096]
[1748732712045,2.06661254,2527.4,2527.3,0.79096]
[1748732712343,1.27568254,2527.4,2527.3,0.79096]
[1748732712544,1.27568254,2527.4,2527.3,2.69276]
[1748732713241,0.79084,2527.7,2527.6,0.79086]
[1748732714135,0.79096,2527.3,2527.2,0.1]
[1748732714340,3.99876,2527.3,2527.2,0.1]
[1748732715142,5.27443564,2527.3,2527.2,0.1]
[1748732718249,23.61443564,2527.3,2527.2,0.1]
[1748732720047,5.27443564,2527.3,2527.2,0.1]
[1748732720446,6.61993564,2527.3,2527.2,0.1]
[1748732720646,7.24873564,2527.3,2527.2,0.1]
[1748732721648,7.44653564,2527.3,2527.2,0.1]
[1748732721838,7.66600633,2527.3,2527.2,0.1]
[1748732722043,7.44653564,2527.3,2527.2,0.1]
[1748732722237,0.79101,2527.2,2527.1,0.79099]
[1748732722448,0.69101,2527.2,2527.1,0.79099]
[1748732722742,1.96668564,2527.2,2527.1,0.79099]
[1748732722949,1.27567564,2527.2,2527.1,0.79099]
[1748732726146,1.27567564,2527.2,2527.1,1.47639]
[1748732726849,1.27567564,2527.2,2527.1,1.57639]
[1748732727444,0.1978,2527.3,2527.2,0.79099]
[1748732727750,0.1978,2527.3,2527.2,1.46759]
[1748732737453,0.1978,2527.3,2527.2,1.56759]
[1748732741359,3.2078,2527.8,2527.2,5.7766]
[1748732741563,0.00592944,2527.9,2527.8,0.7908]
[1748732741763,9.44e-06,2527.9,2527.8,3.9986]
[1748732742260,2.32510502,2528.3,2528.2,0.79067]
[1748732742656,3.12133525,2528.6,2528.5,0.79058]
[1748732742853,9.36400576,2528.9,2528.8,0.79049]
[1748732743055,9.36400576,2528.9,2528.8,3.99829]
[1748732743666,9.36400576,2528.9,2528.8,0.79049]
[1748732743858,13.82590576,2528.9,2528.6,0.00592944]
[1748732744065,0.79052,2528.7,2528.6,0.00592944]
[1748732744260,22.277,2528.7,2527.8,3.2788]
[1748732744461,3.2078,2528.1,2527.8,0.071]
[1748732744660,3.2078,2528.4,2528.3,0.79064]
[1748732744860,3.2078,2528.4,2527.6,7.48382551]
[1748732744861,5.1844,2528.4,2527.6,5.50670551]
[1748732745173,3.2078,2528.0,2527.9,0.79077]
[1748732745464,0.7908,2527.8,2527.7,0.00592944]
[1748732745965,5.0,2527.8,2527.2,0.1]
[1748732746165,3.99871,2527.5,2527.2,0.89096]
[1748732746469,1.3744,2527.4,2527.3,0.79096]
[1748732746763,23.76205,2527.7,2527.4,0.7909]
[1748732746963,0.00592944,2527.6,2527.5,0.79089]
[1748732750564,0.00592944,2527.6,2527.5,2.07659]
[1748732752565,0.00592944,2527.6,2527.5,2.17659]
[1748732758874,9.44e-06,2527.6,2527.5,2.17659]
[1748732761471,9.44e-06,2527.6,2527.5,7.17659]
[1748732761674,2.6374,2528.5,2528.4,0.79061]
[1748732761874,1.9743,2528.5,2528.4,0.79061]
[1748732764272,6.9743,2528.5,2528.2,3.2078]
[1748732764576,6.9743,2528.5,2527.9,0.79076]
[1748732764577,0.79077,2528.0,2527.9,0.79076]
[1748732764779,0.69073,2528.1,2528.0,0.79072]
[1748732765473,0.7907,2528.2,2528.1,0.79069]
[1748732766080,0.6328,2528.3,2528.2,0.79068]
[1748732767676,1.42345,2528.3,2528.2,0.79068]
[1748732767881,0.7907,2528.2,2528.1,0.79069]
[1748732768275,0.79075,2528.0,2527.9,0.79074]
[1748732769279,0.79075,2528.0,2527.9,0.89074]
[1748732772480,0.79073,2528.1,2528.0,0.79072]
[1748732774383,0.98843,2528.1,2528.0,0.79072]
[1748732774784,2.21186935,2528.1,2528.0,0.79072]
[1748732775186,5.41966935,2528.1,2528.0,0.79072]
[1748732775482,0.79074,2528.0,2527.9,0.89075]
[1748732775892,2.01417935,2528.0,2527.9,0.89075]
[1748732778988,1.22343935,2528.0,2527.9,0.89075]
[1748732779284,0.27546935,2528.0,2527.9,0.89075]
[1748732779781,3.48326935,2528.0,2527.9,0.89075]
[1748732780180,0.27546935,2528.0,2527.9,0.89075]
[1748732781592,0.1977,2528.1,2528.0,0.79074]
[1748732782392,0.1977,2528.1,2528.0,0.89074]
[1748732783291,1.5287,2528.1,2528.0,0.89074]
[1748732785194,2.31941,2528.1,2528.0,0.89074]
[1748732786815,1.5287,2528.1,2528.0,0.89074]
[1748732787815,2.31941,2528.1,2528.0,0.89074]
[1748732788024,2.31941,2528.1,2528.0,0.1]
[1748732788421,6.5287,2528.1,2527.6,3.2078]
[1748732788618,3.34416,2528.0,2527.4,0.6249]
[1748732788812,0.79082,2527.8,2527.7,0.79083]
[1748732789212,2.15809,2527.9,2527.8,0.7908]
[1748732789610,1.3673,2527.9,2527.5,1.2486]
[1748732790020,1.3673,2527.9,2527.8,0.7908]
[1748732790209,4.1957,2528.1,2528.0,0.79074]
[1748732790914,4.1957,2528.1,2527.9,0.79075]
[1748732791113,0.79074,2528.0,2527.9,0.79075]
[1748732792704,0.79074,2528.0,2527.9,0.89075]
[1748732793205,2.01124963,2528.0,2527.9,0.89075]
[1748732795510,2.01124963,2528.0,2527.9,0.1]
[1748732795708,2.01124963,2528.0,2527.9,0.89077]
[1748732795908,2.01124963,2528.0,2527.9,2.19747]
[1748732796208,2.01124963,2528.0,2527.9,1.4067]
[1748732798516,2.01124963,2528.0,2527.9,0.1]
[1748732798723,3.26224963,2528.0,2527.9,0.1]
[1748732799312,0.7909,2527.5,2527.4,1.8691]
[1748732799712,3.99869,2527.6,2527.5,0.7909]
[1748732799900,0.79096,2527.3,2527.2,0.6844]
[1748732800106,3.2078,2527.6,2527.2,1.9286]
[1748732800307,0.79096,2527.3,2527.2,2.71956]
[1748732800509,0.79096,2527.3,2527.2,0.6844]
[1748732800711,0.79099,2527.2,2527.1,0.79694944]
[1748732800907,0.79099,2527.2,2527.1,0.00592944]
[1748732801213,0.79099,2527.2,2527.1,0.79694944]
[1748732801809,2.01149963,2527.2,2527.1,0.79694944]
[1748732803115,0.79099,2527.2,2527.1,0.79694944]
[1748732803505,0.79099,2527.2,2527.1,0.00592944]
[1748732803710,0.79099,2527.2,2527.1,0.89692944]
[1748732804314,0.79096,2527.3,2527.1,0.89692944]
[1748732804512,0.79096,2527.3,2527.2,0.79099]
[1748732804920,0.79099,2527.2,2527.1,0.89692944]
[1748732807619,0.79099,2527.2,2527.1,0.10592944]
[1748732808618,2.76469,2527.2,2527.1,0.10592944]
[1748732811518,2.76469,2527.2,2527.1,0.89694944]
[1748732812023,2.76469,2527.2,2527.1,0.10592944]
[1748732812224,2.76469,2527.2,2527.1,0.89694944]
[1748732812416,2.76469,2527.2,2527.1,0.10592944]
[1748732812616,2.76469,2527.2,2527.1,0.89694944]
[1748732813023,2.76469,2527.2,2527.1,0.10592944]
[1748732813519,2.76469,2527.2,2527.1,0.89694944]
[1748732813724,0.79099,2527.2,2527.1,0.89694944]
[1748732813923,0.79099,2527.2,2527.1,0.10592944]
[1748732814222,0.79115,2526.7,2526.6,0.0716]
[1748732814419,3.2078,2526.7,2526.3,0.6534]
[1748732814618,0.7913,2526.2,2526.1,0.79133]
[1748732814818,0.79129,2526.3,2526.1,0.79133]
[1748732815019,0.79129,2526.3,2526.2,0.7913]
[1748732816925,5.28536,2526.4,2526.3,0.79127]
[1748732817125,4.4941,2526.4,2526.3,0.79127]
[1748732818424,4.4941,2526.4,2526.3,0.89127]
[1748732818619,3.2078,2526.4,2526.3,0.89127]
[1748732818827,4.4561,2526.8,2526.3,2.07818]
[1748732819024,3.2078,2526.8,2526.7,0.79115]
[1748732820229,3.99892,2526.8,2526.7,0.79115]
[1748732820431,0.79115,2526.7,2526.6,2.04947]
[1748732820729,3.99894,2526.8,2526.6,2.04947]
[1748732820928,3.99894,2526.8,2526.7,0.79115]
[1748732821733,3.2078,2526.8,2526.7,0.79115]
[1748732822121,3.2078,2527.1,2527.0,0.79105]
[1748732822434,3.21372944,2527.4,2527.3,0.79096]
[1748732823831,3.21372944,2527.4,2527.3,2.07416]
[1748732825120,0.00592944,2527.4,2527.3,2.07416]
[1748732826331,0.20372944,2527.4,2527.3,2.07416]
[1748732830931,0.20372944,2527.4,2527.3,2.17416]
[1748732841338,0.20372944,2527.4,2527.3,5.38196]
[1748732842144,0.20372944,2527.4,2527.3,5.28196]
[1748732842444,0.20372944,2527.4,2527.3,5.38196]
[1748732845252,2.5841,2527.9,2527.8,0.7908]
[1748732845546,3.37488,2527.9,2527.8,0.7908]
[1748732846148,0.79075,2528.0,2527.9,0.79074]
[1748732846739,1.2705,2528.0,2527.9,0.79074]
[1748732846940,2.06124,2528.0,2527.9,0.79074]
[1748732847342,4.19623,2528.1,2528.0,0.79074]
[1748732847548,0.1977,2528.1,2528.0,0.79074]
[1748732848651,7.1868,2528.7,2528.1,0.79071]
[1748732848652,1.3233,2528.6,2528.1,0.79071]
[1748732848849,1.3233,2528.6,2528.5,0.79058]
[1748732849146,2.5938,2528.6,2528.5,0.79058]
[1748732849338,3.38435,2528.6,2528.5,0.79058]
[1748732849745,0.7906,2528.5,2528.4,0.79059]
[1748732850044,3.38437,2528.6,2528.5,0.79058]
[1748732851747,0.7906,2528.5,2528.4,0.79059]
[1748732851941,2.0802,2528.5,2528.4,0.79059]
[1748732852643,1.2896,2528.5,2528.4,0.79059]
[1748732852846,2.08018,2528.5,2528.4,0.79059]
[1748732853949,1.2896,2528.5,2528.4,0.79059]
[1748732856644,1.3233,2528.6,2528.5,0.79058]
[1748732857152,2.11385,2528.6,2528.5,0.79058]
[1748732857354,1.3233,2528.6,2528.5,0.79058]